Cogmind - Beta 15 @@@ ROGUE MODE // 2025.09.09 @ 15:33:10 Player: winnking222 Result: Destroyed by Autobeam Turret with Autobeam Performance ------------- Evolutions (0) 0 Regions Visited (2) 400 Robots Destroyed (44) 220 Value Destroyed (875) 875 Prototype IDs (11) 220 Alien Tech Used (0) 0 Bonus (0) 0 TOTAL SCORE: 1715 Bonus ------- None Cogmind --------- Core Integrity 0/250 Matter 251/300 Energy 250/250 System Corruption 0% Temperature Cool (6) Movement Treading (240) Ox1 Location -10/Subcaves Parts ------- > --- POWER (1) -------- Ion Engine > --- PROPULSION (2) --- Light Treads Light Treads > --- UTILITY (2) ------ High-capacity Storage Unit Medium Armor Plating > --- WEAPON (2) ------- Subdweller Machine Gun Rocket Launcher > --- INVENTORY (20) --- Subdweller Power Source Subdweller Power Source Meta Core Light Treads Armored Wheel Armored Wheel Subdweller Monowheel Subdweller Monowheel Subdweller Monowheel Large Matter Pod (150) Subdweller Optics Subdweller Optics Seismic Detector Medium Armor Plating Subdweller Laser Subdweller Laser Light Cannon Improved Light Cannon Subdweller Shrapnel Launcher Piercing Trap Peak State ------------ > --- POWER ------------ Subdweller Power Source > --- PROPULSION ------- Light Treads Light Treads > --- UTILITY ---------- High-capacity Storage Unit Medium Armor Plating > --- WEAPON ----------- Improved Light Cannon Improved Light Cannon > --- INVENTORY -------- Ion Engine Light Treads Light Treads Light Treads Armored Wheel Armored Wheel Subdweller Monowheel Large Matter Pod Subdweller Optics Seismic Detector Medium Armor Plating Medium Armor Plating Medium Armor Plating Subdweller Laser Improved Light Cannon Improved Light Cannon Rocket Launcher Rocket Launcher [Rating: 14] Favorites ----------- Power Ion Engine Engine Ion Engine Propulsion Light Treads Treads Light Treads Utility High-capacity Storage Unit Device Seismic Detector Storage High-capacity Storage Unit Protection Medium Armor Plating Weapon Improved Light Cannon Energy Gun Subdweller Laser Energy Cannon Subdweller Beam Cannon Ballistic Gun Assault Rifle Ballistic Cannon Improved Light Cannon Launcher Rocket Launcher Build | -11 -10 -10 ------- Run | Yrd Mat Sub Slots Evolved . | . . . Power . | . . . Propulsion . | . . . Utility . | . . . Weapon . | . . . Parts Attached 33 | 7 10 16 Power 4 | 1 1 2 Engine 4 | 1 1 2 Core . | . . . Reactor . | . . . Propulsion 4 | 2 . 2 Treads 4 | 2 . 2 Leg . | . . . Wheel . | . . . Hover . | . . . Flight . | . . . Utility 9 | 2 4 3 Device 2 | 1 1 . Storage 2 | 1 1 . Processor . | . . . Hackware . | . . . Protection 5 | . 2 3 Artifact . | . . . Weapon 16 | 2 5 9 Energy Gun 4 | . . 4 Energy Cannon 1 | . . 1 Ballistic Gun 3 | 2 . 1 Ballistic Cannon 6 | . 4 2 Launcher 2 | . 1 1 Special Weapon . | . . . Impact Weapon . | . . . Slashing Weapon . | . . . Piercing Weapon . | . . . Special Melee Weapon . | . . . Unidentified Prototypes . | . . . Parts Lost 7 | . . 7 Power 1 | . . 1 Propulsion 2 | . . 2 Utility 2 | . . 2 Weapon 2 | . . 2 Highest Loss Streak 1 | . . 1 To Critical Strikes . | . . . Average Backups 17 | 5 16 19 Power . | . 1 . Propulsion 4 | 2 3 5 Utility 5 | . 5 6 Weapon 6 | 1 6 6 Tool/Special . | . . . Unused Backups 26 | . 9 17 Power 2 | . . 2 Propulsion 9 | . 3 6 Utility 6 | . 2 4 Weapon 8 | . 4 4 Tool/Special 1 | . . 1 Average Slot Usage (%) 99 | . 100 99 Engine 13 | . 14 13 Treads 27 | . 28 27 Storage 14 | . 14 14 Protection 13 | . 11 13 Energy Gun 4 | . . 5 Energy Cannon 1 | . . 2 Ballistic Gun 3 | . 8 1 Ballistic Cannon 18 | . 19 17 Peak Build Rating 14 | 7 12 14 Average Rating 12 | 5 9 13 On Entrance 6 | . 7 12 Naked Turns . | . . . Heaviest Build 64 | 14 54 64 Greatest Support 40 | 40 40 40 Greatest Overweight (x) 2 | . 1 2 Average Overweight (x) . | . . 1 Largest Inventory Capacity 20 | 8 20 20 Average Capacity 19 | 7 18 20 Most Carried 20 | 7 20 20 Average Carried 18 | 5 16 19 Final Capacity 20 | 8 20 20 Final Carried 20 | 6 20 20 Class Distribution -------------------- 100% | Mutant Dominant Class ---------------- Mutant | -10/Materials Mutant | -10/Subcaves Resources | -11 -10 -10 ----------- Run | Yrd Mat Sub Matter Collected 1363 | 298 548 517 Remotely . | . . . Salvage Created 886 | 123 377 386 Parts 70 | 20 24 26 Haulers Intercepted 1 | . 1 . Recyclers Shooed 2 | 1 1 . Parts Field Recycled . | . . . Retrieved Matter . | . . . Parts Self-Destructed 8 | . . 8 Prevented . | . . . Kills | -11 -10 -10 ------- Run | Yrd Mat Sub Combat Hostiles Destroyed 29 | . 14 15 Guns 8 | . 8 . Cannons 17 | . 3 14 AOE 4 | . 3 1 Classes Destroyed 10 | 3 5 2 Worker 1 | 1 . . Builder 1 | . 1 . Tunneler 6 | 6 . . Hauler 1 | . 1 . Recycler 2 | 1 1 . Turret 1 | . . 1 Watcher 3 | . 3 . Swarmer 14 | . 11 3 Grunt 3 | . 3 . Subdweller 12 | . . 12 Best Kill Streak 6 | 3 6 3 Combat Bots Only 5 | . 5 3 Max Kills in Single Turn 2 | 1 2 1 Gunslinging . | . . . Exploded 2 | . 2 1 Melee . | . . . Uniques/NPCs Destroyed . | . . . Combat | -11 -10 -10 -------- Run | Yrd Mat Sub Hostile Shots Fired 181 | . 53 128 Missed 69 | . 15 54 Hits 112 | . 38 74 Projectile 112 | . 38 74 AOE 8 | . . 8 Damage Taken 1925 | . 378 1547 Core 251 | . 43 208 Absorbed by Shields . | . . . Core Remaining (%) 100 | 100 . . Volleys Fired 156 | 13 43 100 Largest 2 | 2 2 2 Hottest 113 | 40 66 113 Shots Fired 267 | 26 84 157 Gun 117 | 26 46 45 Cannon 144 | . 36 108 Launcher 6 | . 2 4 Special . | . . . Kinetic 206 | 26 82 98 Thermal 47 | . . 47 Explosive 6 | . 2 4 Electromagnetic 8 | . . 8 Robot Hit Streak 15 | 6 15 11 Robot Miss Streak 8 | 2 8 4 Penetration Max . | . . . Secondary Targets 2 | . 2 . Max Gunslinging Chain 1 | . 1 . Shots Hit Robots 118 | 15 47 56 Core Hits 60 | 9 24 27 Critical Kills . | . . . Critical Parts Destroyed . | . . . Critical Strikes 4 | . 1 3 Blast 4 | . 1 3 Melee Attacks . | . . . Impact . | . . . Slashing . | . . . Piercing . | . . . Sneak Attacks . | . . . Combat Hostiles . | . . . Follow-up Attacks . | . . . Damage Inflicted 2462 | 179 904 1379 Guns 548 | 153 303 92 Cannons 1445 | . 336 1109 Explosions 418 | . 240 178 Melee . | . . . Ramming 51 | 26 25 . Kinetic 1719 | 153 639 927 Thermal 283 | . . 283 Explosive 353 | . 240 113 Electromagnetic 56 | . . 56 Impact . | . . . Slashing . | . . . Piercing . | . . . Highest Corruption . | . . . Average Corruption . | . . . Corruption Purged . | . . . Corruption Blocked . | . . . Overload Shots . | . . . Overflow Damage 3 | . 3 . Projectiles 1 | . 1 . Explosions 2 | . 2 . Melee . | . . . Knockbacks 13 | . 4 9 Impact . | . . . Kinetic 13 | . 4 9 Secondary . | . . . Self-Inflicted Damage . | . . . Shots . | . . . Rammed 10 | 8 2 . Targets Rammed 13 | 11 2 . Kicked . | . . . Crushed 3 | 3 . . Highest Temperature 90 | . 90 18 Average Temperature 22 | . 27 6 Received Heat Transfer 366 | . 108 258 Siege Activations . | . . . Martial Activations . | . . . Shielding Activations . | . . . Robots Disrupted . | . . . Combat Hostiles . | . . . Robots Corrupted . | . . . Combat Hostiles . | . . . Parts Fried . | . . . Impact Corruptions . | . . . Robots Melted . | . . . Combat Hostiles . | . . . Parts Melted . | . . . Heat Transferred 296 | . . 296 Parts Sabotaged . | . . . Parts Stolen . | . . . Parts Stripped . | . . . Power Chain Reactions 1 | . . 1 Alert | -11 -10 -10 ------- Run | Yrd Mat Sub Maximum Alert Level . | . . . Low Security (%) 100 | 100 100 . Level 1 . | . . . Level 2 . | . . . Level 3 . | . . . Level 4 . | . . . Level 5 . | . . . High Security . | . . . Max Security . | . . . Peak Influence 189 | 10 189 . Initial 3 | . 3 . Average 46 | 1 53 . Influence Increases 647 | 40 467 140 Destroy 0b10 Robot/C 360 | . 280 80 Destroy 0b10 Robot/NC 70 | 40 30 . Destroy Leader 68 | . 68 . Successful Hack 37 | . 37 . Destroy Structure 22 | . 22 . Lose Combat Pursuer 90 | . 30 60 Influence Decreases 597 | 35 472 90 Entered New Map 2 | . 2 . Time Decay 585 | 35 470 80 Lost Part 10 | . . 10 Squads Dispatched 1 | . 1 . Investigation . | . . . Extermination . | . . . Reinforcement 1 | . 1 . Assault . | . . . Garrison . | . . . Intercept . | . . . Searches Triggered . | . . . Construction Impeded . | . . . Haulers Reinforced . | . . . Active Scanning Responses . | . . . Cargo Convoy Interrupts . | . . . Stealth | -11 -10 -10 --------- Run | Yrd Mat Sub Distress Signals 1 | . 1 . Communications Jammed . | . . . Distress Signals . | . . . Times Spotted 39 | . 22 17 Peak Tracking Total 6 | . 3 6 Tactical Retreats 4 | . 2 2 Traps | -11 -10 -10 ------- Run | Yrd Mat Sub Traps Triggered 2 | . . 2 Indirectly . | . . . Trap Hack Attempts . | . . . Triggered . | . . . Disarmed . | . . . Reprogrammed . | . . . Reused . | . . . Traps Extracted . | . . . Installed . | . . . Triggered . | . . . Most Traps Carried 1 | . . 1 Machines | -11 -10 -10 ---------- Run | Yrd Mat Sub Machines Disabled 4 | . . 4 Max in Single Turn 3 | . . 3 Machines Repaired . | . . . Machines Dismantled . | . . . Machines Sabotaged . | . . . Overloaded Fab Kills . | . . . Hacking | -11 -10 -10 --------- Run | Yrd Mat Sub Machines Accessed 9 | . 7 2 Terminals 7 | . 7 . Fabricators . | . . . Repair Stations . | . . . Recycling Units . | . . . Scanalyzers . | . . . Garrison Access . | . . . Total Hacks 21 | . 15 6 Successful 15 | . 9 6 Failed 6 | . 6 . Catastrophic . | . . . Database Lockouts . | . . . Manual 14 | . 14 . Terminals 15 | . 15 . Fabricators . | . . . Repair Stations . | . . . Recycling Units . | . . . Scanalyzers . | . . . Garrison Access . | . . . Terminal Hacks 7 | . 1 6 Record 5 | . . 5 Zone Layout 1 | . 1 . Proto ID Catalog 1 | . . 1 Fabricator Hacks . | . . . Repair Station Hacks . | . . . Recycling Unit Hacks . | . . . Scanalyzer . | . . . Garrison Access Hacks . | . . . Unauthorized Hacks 8 | . 8 . Terminals 8 | . 8 . Botnet 1 | . 1 . Skim 7 | . 7 . Fabricators . | . . . Repair Stations . | . . . Recycling Units . | . . . Scanalyzers . | . . . Garrison Access . | . . . Data Cores Recovered . | . . . Used . | . . . Hacking Detections 3 | . 3 . Full Trace Events 1 | . 1 . Feedback Events . | . . . Feedback Blocked . | . . . Robot Schematics Acquired . | . . . Robots Built . | . . . Authchips . | . . . Time . | . . . Total Robot Build Rating . | . . . Part Schematics Acquired . | . . . Parts Built . | . . . Authchips . | . . . Time . | . . . Total Part Build Rating . | . . . Parts Repaired . | . . . Time . | . . . Parts Recycled . | . . . Recycled Matter . | . . . Retrieved Matter . | . . . Retrieved Components . | . . . Parts Scanalyzed . | . . . Part Schematics Acquired . | . . . Parts Damaged . | . . . Bothacking | -11 -10 -10 ------------ Run | Yrd Mat Sub Used RIF Installer . | . . . Robots Hacked . | . . . Non-combat . | . . . Combat . | . . . Robot Hacks Applied . | . . . Relay Couplers Released . | . . . Fabnet Peak Effective % . | . . . Robots Rewired . | . . . Allies Hacked . | . . . Hacks Repelled . | . . . Allies | -11 -10 -10 -------- Run | Yrd Mat Sub Total Allies . | . . . Largest Group . | . . . Highest-Rated Group . | . . . Highest-Rated Ally . | . . . Total Orders . | . . . Ally Attacks . | . . . Total Damage . | . . . Kills . | . . . Allies Corrupted . | . . . Allies Melted . | . . . Intel | -11 -10 -10 ------- Run | Yrd Mat Sub Active Infowar (turns) 374 | 109 265 . Seismic 374 | 109 265 . Robot Analysis Total . | . . . Derelict Logs Recovered 2 | . . 2 Drone Launches . | . . . Drone Recoveries . | . . . Exploration | -11 -10 -10 ------------- Run | Yrd Mat Sub Turns Passed 6432 | 259 1727 4446 Spaces Moved 2473 | 131 667 1675 Core 20 | 20 . . Treads 2453 | 111 667 1675 Legs . | . . . Wheels . | . . . Hover . | . . . Flight . | . . . Fastest Speed 50 | 50 160 240 Average Speed 231 | 143 228 240 Slowest Speed 320 | 160 240 320 Overloaded Moves . | . . . Propulsion Burnouts . | . . . Robots Hopped . | . . . Potential Cave-ins . | . . . Cave-ins Triggered . | . . . Exploration Rate (%) 64 | 4 94 94 Regions Visited 2 Branch Regions 1 Pre-discovered Areas 1 | . 1 . Known Exits Taken 1 | . 1 . Unknown Exits Taken 1 | 1 . . Scrap Searched 3 | . . 3 Spaces Dug 1 | . . 1 Terrain Destroyed 47 | . 20 27 Melee . | . . . Projectile 6 | . 1 5 AOE 41 | . 19 22 Terrain Rammed . | . . . Walls Destroyed . | . . . Machines Disabled . | . . . Actions | -11 -10 -10 --------- Run | Yrd Mat Sub Total 2908 | 172 794 1942 Wait 145 | . 23 122 Move 2471 | 130 666 1675 Hop . | . . . Pick Up 57 | 11 29 17 Fast Attach 3 | 2 . 1 Attach 17 | 5 1 11 Detach . | . . . Swap 18 | . 13 5 Drop 28 | . 17 11 Fire 156 | 13 43 100 Melee . | . . . Ram . | . . . Kick . | . . . Crush 13 | 11 2 . Escape Stasis . | . . . Rewire . | . . . Trap . | . . . Miscellaneous . | . . . Route ------- -11/Scrapyard -10/Materials (discovered 6 exits: [*Mat x3] / [*Min x2] / *Sub) -10/Subcaves (discovered 3 exits: [*Mat x2] / Rec) History --------- Turn | Location | Event 8 | -11/Scrapyard | Discovered new exit (range 15) 260 | -11/Scrapyard | Entered Materials 318 | -10/Materials | Build established: Mutant 609 | -10/Materials | Discovered new exit (range 7) 808 | -10/Materials | Discovered new exit (range 4) 965 | -10/Materials | Discovered new exit (range 16) 1150 | -10/Materials | Discovered new exit (range 15) 1160 | -10/Materials | Derelicts attacked the area 1499 | -10/Materials | Discovered new exit (range 14) 1570 | -10/Materials | Loaded intel: 16 trap records 1614 | -10/Materials | Learned location of 2 exits from Mines 1648 | -10/Materials | Learned Materials trap positions 1672 | -10/Materials | Learned Materials trap positions 1684 | -10/Materials | Identified exit to Subcaves 1685 | -10/Materials | Learned location of Recycling (-7) 1987 | -10/Materials | Entered Subcaves 1988 | -10/Subcaves | Approached by a straggling Scientist 2436 | -10/Subcaves | Discovered new exit (range 5) 2614 | -10/Subcaves | Core integrity fell below 50% 3009 | -10/Subcaves | Disturbed a concealed Subdweller 3858 | -10/Subcaves | Visited 4L-MR0's lab 3882 | -10/Subcaves | Found Meta Core 4272 | -10/Subcaves | Discovered new exit (range 9) 4305 | -10/Subcaves | Visited Clippyterm 4313 | -10/Subcaves | Identified exit to Recycling 4313 | -10/Subcaves | Learned Factory emergency access door positions 5691 | -10/Subcaves | Core integrity fell below 20% 6433 | -10/Subcaves | Destroyed by Autobeam Turret with Autobeam Last Messages --------------- 05797_ Imp. Light Cannon destroyed. 05801_ Subatomizers dissect the Sub. Optics. 05844_ 3I-9GV(R) affixes Scrap Shield Fragment to Scrap Shield. 05845_ Subatomizers dissect the Sub. Optics. 05855_ Subatomizers dissect the Sub. Optics, destroying it. 05855_ 3I-9GV(R) destroyed. 05863_ Acquired 22 matter. 05865_ Subatomizers dissect the Sub. Power Source. 05868_ Acquired Sub. Power Source. 05982_ L6-Q10(u) builds Twisted Machinery. 05999_ Sub. Beam Cannon shoots sparks and powers down. 05999_ L6-Q10(u) tweaks Twisted Machinery. 06001_ Dropped Broken Sub. Beam Cannon. 06011_ Subatomizers dissect the Broken Sub. Beam Cannon. 06202_ Acquired 4 matter. 06207_ Acquired 2 matter. 06322_ Acquired Lgt. Cannon. 06423_ Acquired 5 matter. 06430_ Autobeam Turret destroyed. 06433_ Subatomizers dissect the Autobeam. Map ----- +----------------------------------------------------+ | ?????????????????????????????????????????????????? | | ?????????????????????????????????????????????????? | | ?????????????????????????????????????????????????? | | ?????????????????????????????????????????????????? | | ?????????????????????????????????????????????????? | | ?????????????????????????????????????????????????? | | ?????????????????????????????????????????????????? | | ?????????????????????????>???????????????????????? | | ?????????????????????????????????????????????????? | | ?????????????????????????????????????????????????? | | ???????????????????????[ t ?????????????????????? | | ??????????????????????? ????????????????????? | | ??????????????????????? ????????????????####? | | ??????????????????????? ????????????????# ## | | ??????????????????????? ????????????????# # | | ??????????????????????## ????????????????## | | ??????????????????????# ????????????????# | | #####?????????????????# ????????????????#### | | # #?????????????????# ???????????????????### | | ##???????????????## ###??????????##???????# | | #???????????????# ###???????## ???????# | | " ###???????????????# ##???#### ##????## | | " ##????????????????? ##### ####?# | | " #?????????????????? ## ### | | " #???????????????????# ## ## | | < #???????????????????#@ ## #?# | | ###???###???????????### ### #### | | # #???### #???????????# ## ### | | # ##### ######?###### #?# ## | | # ## #?# ### | | #??# = & # | | #??# ; & ## # | | # ## ###### # ### ## | | ####### ### ### ##?######? | | #?????# ##?# ##??####### | | #????## ; #?# #?### | | #????# #### ### #######?# ####" | | ?????# ######??##### #??????# #?#" | | #????#### #?##????????# #??????# ?# | | #######?# ## #????????# #??????# ?# | | # ### ##???????## ####????## ### #" | | ##??????# #?????###?# ## | | "#??????# #####???####" # | | # #### " #????#### "## ##### ##"*%% #### | | ###??#### "#???##"" # "" " &% #??? | | #?????### #?? """" " "" % #### | | #????## #### #"" """""" ] # ## ## | | ###??# ##???##""??# ##" #### | | #??# ##??????""??#?##"" "#??### ## | | #??# #?????? ""####""##"" "##???## ## | +----------------------------------------------------+ Best States ------------- Heat Dissipation 25 Energy Generation 15 Energy Capacity 250 Matter Stores 300 Matter Capacity 300 Sight Range 16 Terrain Scan Density 10 Armor Coverage 225 Evasion (%) 50 Recoil Reduction 2 Item Schematics ----------------- None Robot Schematics ------------------ None Fabricated ------------ Nothing Repaired ---------- Nothing Alien Tech Used ----------------- None Achievements -------------- None Challenges ------------ None Game ------ Seed MachineDeuteriumImmobilizer Manual? 0 Play Time 00:22:34 Cumulative 173.3 hours Start 2025.09.09 @ 15:01:37 End 2025.09.09 @ 15:33:10 Sessions 1 Manual Loads 0 Difficulty Rogue Special Mode None Game No. 238 Rogue 238 Adventurer 0 Explorer 0 Win Type - Total 2 Types 2/0/0/0/0/0/0/0/0/0 Lore% 72 Gallery% 69 Achievement% 60 Wizard Run 0 Options --------- Layout 0 ASCII 0 Keyboard 0 Movement Mouse Keybinds 0 Fullscreen 1 Font 16/SmallcapsGlow Map View 75x55 Zoom Use 0% Tactical HUD 1 Map Filters NONE Filters NONE Steam 1 RUN: a39e8c9c-c08c-4bb2-bd9d-5986564095a3